fUST/lending_fUST_20240501
["ID","MTS","AMOUNT","RATE_DAILY","PERIOD"]
[325006347,1714503058032,-941.79,0.00036438,7]
[325006348,1714503058042,-605.09,0.00036438,7]
[325006350,1714503058052,-576.85,0.00036438,7]
[325006353,1714503058062,-500.0,0.00036438,7]
[325006354,1714503058071,-500.0,0.00036438,7]
[325006356,1714503058080,-718.76,0.00036438,7]
[325006359,1714503058090,-500.0,0.00036438,7]
[325006361,1714503058100,-500.0,0.00036438,7]
[325006362,1714503058109,-500.0,0.00036438,7]
[325006365,1714503058118,-500.0,0.00036438,7]
[325006366,1714503058128,-1963.73,0.00036438,7]
[325006368,1714503058137,-335.91813179,0.00036438,7]
[325006371,1714503058146,-2044.95,0.00036438,7]
[325006372,1714503058155,-502.72,0.00036438,7]
[325006374,1714503058164,-477.54665271,0.00036438,7]
[325006377,1714503058174,-500.0,0.00036438,7]
[325006379,1714503058183,-751.9,0.00036469,14]
[325006380,1714503058192,-696.74,0.00036712,7]
[325006383,1714503058201,-500.0,0.00036712,7]
[325006385,1714503058210,-554.14,0.00036712,7]
[325006387,1714503058220,-471.24025934,0.00036712,7]
[325006388,1714503058229,-500.0,0.00036712,7]
[325006391,1714503058239,-500.0,0.00036712,7]
[325006393,1714503058248,-500.0,0.00036712,7]
[325006394,1714503058257,-500.0,0.00036712,7]
[325006397,1714503058267,-574.65,0.00036712,7]
[325006398,1714503058276,-658.13,0.00036712,7]
[325006401,1714503058285,-1040.92,0.00036712,7]
[325006402,1714503058294,-510.31,0.00036712,7]
[325006405,1714503058306,-941.79,0.00036712,7]
[325006407,1714503058315,-605.09,0.00036712,7]
[325006409,1714503058324,-576.85,0.00036712,7]
[325006410,1714503058334,-500.0,0.00036712,7]
[325006413,1714503058345,-500.0,0.00036712,7]
[325006415,1714503058355,-718.76,0.00036712,7]
[325006417,1714503058364,-500.0,0.00036712,7]
[325006419,1714503058373,-500.0,0.00036712,7]
[325006421,1714503058382,-500.0,0.00036712,7]
[325006423,1714503058391,-500.0,0.00036712,7]
[325006425,1714503058400,-1963.73,0.00036712,7]
[325006427,1714503058410,-2044.95,0.00036712,7]
[325006429,1714503058419,-502.72,0.00036712,7]
[325006431,1714503058428,-528.44056883,0.00036712,7]
[325006433,1714503058437,-696.74,0.00036986,7]
[325006435,1714503058446,-500.0,0.00036986,7]
[325006437,1714503058455,-554.14,0.00036986,7]
[325006438,1714503058464,-500.0,0.00036986,7]
[325006441,1714503058473,-500.0,0.00036986,7]
[325006442,1714503058482,-500.0,0.00036986,7]
[325006445,1714503058491,-218.96310698,0.00036986,7]
[325006446,1714503058501,-574.65,0.00036986,7]
[325006449,1714503058511,-658.13,0.00036986,7]
[325006450,1714503058520,-1040.92,0.00036986,7]
[325006452,1714503058529,-510.31,0.00036986,7]
[325006454,1714503058538,-941.79,0.00036986,7]
[325006456,1714503058548,-605.09,0.00036986,7]
[325006458,1714503058561,-576.85,0.00036986,7]
[325006460,1714503058572,-500.0,0.00036986,7]
[325006463,1714503058582,-432.08132683,0.00036986,7]
[325006464,1714503058592,-718.76,0.00036986,7]
[325006467,1714503058603,-270.26411324,0.00036986,7]
[325006468,1714503058612,-500.0,0.00036986,7]
[325006470,1714503058621,-500.0,0.00036986,7]
[325006472,1714503058631,-500.0,0.00036986,7]
[325006474,1714503058641,-1963.73,0.00036986,7]
[325006476,1714503058651,-2044.95,0.00036986,7]
[325006478,1714503058661,-502.72,0.00036986,7]
[325006480,1714503058671,-2927.07021767,0.00037,2]
[325006482,1714503058679,-588.0,0.000372,2]
[325006483,1714503058688,-9012.68282379,0.0003726,30]
[325006484,1714503058698,-696.74,0.0003726,7]
[325006485,1714503058707,-500.0,0.0003726,7]
[325006486,1714503058716,-554.14,0.0003726,7]
[325006487,1714503058725,-500.0,0.0003726,7]
[325006488,1714503058735,-500.0,0.0003726,7]
[325006489,1714503058744,-500.0,0.0003726,7]
[325006490,1714503058754,-574.65,0.0003726,7]
[325006491,1714503058763,-658.13,0.0003726,7]
[325006492,1714503058772,-1040.92,0.0003726,7]
[325006493,1714503058781,-510.31,0.0003726,7]
[325006494,1714503058791,-941.79,0.0003726,7]
[325006496,1714503058800,-605.09,0.0003726,7]
[325006498,1714503058809,-576.85,0.0003726,7]
[325006500,1714503058818,-510.20748531,0.0003726,7]
[325006502,1714503058827,-718.76,0.0003726,7]
[325006504,1714503058837,-500.0,0.0003726,7]
[325006506,1714503058847,-500.0,0.0003726,7]
[325006508,1714503058857,-500.0,0.0003726,7]
[325006511,1714503058867,-1963.73,0.0003726,7]
[325006513,1714503058876,-2044.95,0.0003726,7]
[325006515,1714503058886,-502.72,0.0003726,7]
[325006517,1714503058895,-153.21482082,0.000374,7]
[325006519,1714503058905,-153.89720645,0.000374,7]
[325006529,1714503058995,-152.78647308,0.00037417,7]
[325006531,1714503059005,-1203.1,0.00037427,64]
[325006533,1714503059014,-1203.1,0.00037427,64]
[325006536,1714503059024,-1203.1,0.00037427,64]
[325006538,1714503059034,-1203.1,0.00037427,64]
[325006539,1714503059043,-1203.21695924,0.00037427,64]
[325006542,1714503059052,-235.95222024,0.00037428,4]
[325006543,1714503059061,-153.21482082,0.00037429,7]
[325006546,1714503059071,-751.9,0.00037446,14]
[325006547,1714503059080,-154.64623115,0.00037446,7]
[325006550,1714503059089,-446.83455771,0.00037463,7]
[325006552,1714503059102,-446.83455771,0.00037493,7]
[325006553,1714503059111,-3542.326258,0.000375,32]
[325006556,1714503059120,-153.21482082,0.00037527,7]
[325006558,1714503059130,-696.74,0.00037534,7]
[325006560,1714503059140,-500.0,0.00037534,7]
[325006561,1714503059149,-554.14,0.00037534,7]
[325006564,1714503059159,-564.17899168,0.00037534,7]
[325006566,1714503059168,-500.0,0.00037534,7]
[325006568,1714503059178,-435.93224918,0.00037534,7]
[325006570,1714503059187,-574.65,0.00037534,7]
[325006571,1714503059196,-658.13,0.00037534,7]
[325006573,1714503059206,-1040.92,0.00037534,7]
[325006575,1714503059216,-510.31,0.00037534,7]
[325006578,1714503059225,-941.79,0.00037534,7]
[325006580,1714503059236,-605.09,0.00037534,7]
[325006582,1714503059245,-576.85,0.00037534,7]
[325006583,1714503059254,-718.76,0.00037534,7]
[325006585,1714503059264,-500.0,0.00037534,7]
[325006587,1714503059274,-500.0,0.00037534,7]
[325006589,1714503059284,-233.07700869,0.00037534,7]
[325006592,1714503059294,-1963.73,0.00037534,7]
[325006594,1714503059305,-2044.95,0.00037534,7]
[325006596,1714503059314,-502.72,0.00037534,7]
[325006598,1714503059323,-153.21482082,0.0003754,7]
[325006599,1714503059332,-154.64623115,0.00037547,7]
[325006601,1714503059342,-153.21482082,0.00037558,7]
[325006603,1714503059352,-446.83455771,0.0003763,7]
[325006605,1714503059360,-153.21482082,0.00037639,7]
[325006607,1714503059370,-160.570029,0.00037668,2]
[325006609,1714503059379,-152.78647308,0.00037669,7]
[325006611,1714503059388,-154.64623115,0.0003769,7]
[325006613,1714503059398,-153.21482082,0.00037697,7]
[325006615,1714503059407,-153.21482082,0.00037699,7]
[325006617,1714503059417,-446.83455771,0.00037704,7]
[325006619,1714503059426,-154.64623115,0.00037749,7]
[325006621,1714503059435,-152.78647308,0.00037752,7]
[325006623,1714503059444,-153.21482082,0.00037777,7]
[325006625,1714503059453,-150.0,0.0003778,29]
[325006627,1714503059463,-696.74,0.00037808,7]
[325006629,1714503059472,-316.79287979,0.00037808,7]
[325006631,1714503059481,-554.14,0.00037808,7]
[325006633,1714503059490,-500.0,0.00037808,7]
[325006635,1714503059499,-574.65,0.00037808,7]
[325006637,1714503059509,-658.13,0.00037808,7]
[325006639,1714503059518,-1040.92,0.00037808,7]
[325006641,1714503059527,-510.31,0.00037808,7]
[325006643,1714503059537,-941.79,0.00037808,7]
[325006645,1714503059546,-605.09,0.00037808,7]
[325006647,1714503059555,-576.85,0.00037808,7]
[325006649,1714503059568,-718.76,0.00037808,7]
[325006651,1714503059577,-185.24683608,0.00037808,7]
[325006653,1714503059586,-194.16312837,0.00037808,7]
[325006655,1714503059597,-1963.73,0.00037808,7]
[325006657,1714503059608,-2044.95,0.00037808,7]
[325006659,1714503059618,-502.72,0.00037808,7]
[325006661,1714503059627,-154.64623115,0.00037821,7]
[325006664,1714503059638,-153.21482082,0.00037891,7]
[325006666,1714503059647,-446.83455771,0.00037896,7]
[325006667,1714503059657,-446.83455771,0.0003792,7]
[325006669,1714503059667,-153.89720645,0.00037937,7]
[325006671,1714503059676,-153.21482082,0.00037941,7]
[325006673,1714503059685,-153.89720645,0.00037971,7]
[325006676,1714503059695,-446.83455771,0.00037997,7]
[325006677,1714503059704,-154.64623115,0.00037999,7]
[325006679,1714503059713,-1004.97453702,0.00038,7]
[325006681,1714503059722,-15635.34775667,0.00038,90]
[325006684,1714503059731,-460.66945341,0.00038,30]
[325006685,1714503059741,-1000.0,0.00038,38]
[325006687,1714503059750,-377.0,0.00038,2]
[325006690,1714503059759,-153.21482082,0.00038002,7]
[325006691,1714503059768,-154.64623115,0.00038025,7]
[325006694,1714503059778,-153.21482082,0.00038028,7]
[325006695,1714503059787,-446.83455771,0.00038078,7]
[325006698,1714503059797,-154.64623115,0.00038079,7]
[325006700,1714503059806,-696.87971659,0.00038082,7]
[325006701,1714503059815,-554.14968568,0.00038082,7]
[325006703,1714503059825,-358.45730852,0.00038082,7]
[325006705,1714503059834,-574.66617151,0.00038082,7]
[325006707,1714503059845,-658.29,0.00038082,7]
[325006709,1714503059855,-1040.96009695,0.00038082,7]
[325006711,1714503059864,-510.32173178,0.00038082,7]
[325006713,1714503059873,-941.82672193,0.00038082,7]
[325006715,1714503059883,-605.28986836,0.00038082,7]
[325006717,1714503059892,-576.98997477,0.00038082,7]
[325006719,1714503059901,-718.89698322,0.00038082,7]
[325006721,1714503059911,-1963.82668114,0.00038082,7]
[325006723,1714503059921,-2045.06875689,0.00038082,7]
[325006725,1714503059931,-502.83459346,0.00038082,7]
[325006727,1714503059940,-153.89720645,0.00038129,7]
[325006729,1714503059949,-154.64623115,0.00038157,7]
[325006731,1714503059959,-446.83455771,0.0003821,7]
[325006733,1714503059969,-153.0,0.00038249,2]
[325006735,1714503059978,-153.0,0.00038249,2]
[325006737,1714503059987,-153.0,0.00038249,2]
[325006738,1714503059997,-153.0,0.00038249,2]
[325006740,1714503060007,-153.0,0.00038249,2]
[325006742,1714503060017,-425.9480792,0.00038249,2]
[325006745,1714503060027,-446.83455771,0.00038269,7]
[325006747,1714503060037,-153.21482082,0.00038306,7]
[325006749,1714503060047,-154.64623115,0.00038313,7]
[325006751,1714503060056,-153.21482082,0.00038316,7]
[325006753,1714503060067,-153.89720645,0.0003835,7]
[325006755,1714503060079,-446.83455771,0.00038353,7]
[325006757,1714503060088,-152.78647308,0.00038354,7]
[325006759,1714503060102,-446.83455771,0.00038378,7]
[325006761,1714503060111,-229.0249122,0.00038386,2]
[325006762,1714503060122,-203.8071857,0.00038386,2]
[325006765,1714503060133,-153.0,0.00038386,2]
[325006767,1714503060143,-153.0,0.00038386,2]
[325006769,1714503060152,-153.0,0.00038386,2]
[325006771,1714503060163,-153.0,0.00038386,2]
[325006773,1714503060173,-203.8071857,0.00038386,2]
[325006775,1714503060183,-153.0,0.00038386,2]
[325006777,1714503060193,-153.0,0.00038386,2]
[325006779,1714503060203,-153.0,0.00038386,2]
[325006781,1714503060213,-203.8071857,0.00038386,2]
[325006783,1714503060223,-153.0,0.00038386,2]
[325006785,1714503060233,-153.0,0.00038386,2]
[325006787,1714503060243,-203.8071857,0.00038386,2]
[325006789,1714503060253,-153.0,0.00038386,2]
[325006791,1714503060263,-153.0,0.00038386,2]
[325006793,1714503060273,-153.0,0.00038386,2]
[325006795,1714503060283,-153.0,0.00038386,2]
[325006797,1714503060294,-203.8071857,0.00038386,2]
[325006799,1714503060304,-153.0,0.00038386,2]
[325006801,1714503060314,-153.0,0.00038386,2]
[325006803,1714503060325,-153.0,0.00038386,2]
[325006805,1714503060335,-153.0,0.00038386,2]
[325006807,1714503060349,-153.0,0.00038386,2]
[325006809,1714503060359,-153.0,0.00038386,2]
[325006811,1714503060369,-153.0,0.00038386,2]
[325006813,1714503060378,-153.0,0.00038386,2]
[325006814,1714503060388,-203.8071857,0.00038386,2]
[325006815,1714503060397,-153.0,0.00038386,2]
[325006816,1714503060407,-153.0,0.00038386,2]
[325006817,1714503060416,-153.0,0.00038386,2]
[325006818,1714503060426,-153.0,0.00038386,2]
[325006819,1714503060436,-203.8071857,0.00038386,2]
[325006820,1714503060446,-153.0,0.00038386,2]
[325006821,1714503060455,-153.89720645,0.00038386,7]
[325006822,1714503060466,-154.64623115,0.00038398,7]
[325006823,1714503060475,-152.95,0.000384,120]
[325006824,1714503060484,-153.0,0.00038401,2]
[325006825,1714503060494,-165.1488651,0.00038401,2]
[325006827,1714503060504,-751.9,0.00038423,14]
[325006829,1714503060513,-154.64623115,0.00038462,7]
[325006831,1714503060522,-152.78647308,0.00038467,7]
[325006833,1714503060531,-156.96846278,0.00038487,7]
[325006835,1714503060541,-769.2,0.00038597,30]
[325006837,1714503060550,-1000.0,0.00038607,2]
[325006839,1714503060561,-377.0,0.0003863,14]
[325006841,1714503060572,-153.21482082,0.00038655,7]
[325006844,1714503060582,-153.0,0.0003866,2]
[325006845,1714503060591,-153.0,0.0003866,2]
[325006848,1714503060605,-153.0,0.0003866,2]
[325006849,1714503060615,-153.0,0.0003866,2]
[325006852,1714503060625,-153.0,0.0003866,2]
[325006854,1714503060634,-153.0,0.0003866,2]
[325006856,1714503060644,-153.0,0.0003866,2]
[325006858,1714503060653,-153.0,0.0003866,2]
[325006860,1714503060663,-153.0,0.0003866,2]
[325006862,1714503060672,-1000.0,0.00038666,2]
[325006863,1714503060682,-153.21482082,0.00038677,7]
[325006865,1714503060691,-154.64623115,0.00038688,7]
[325006867,1714503060700,-417.0,0.00038694,2]
[325006869,1714503060709,-153.21482082,0.00038702,7]
[325006871,1714503060719,-153.21482082,0.00038749,7]
[325006873,1714503060728,-154.64623115,0.00038758,7]
[325006876,1714503060738,-154.64623115,0.0003878,7]
[325006878,1714503060747,-152.78647308,0.00038815,7]
[325006880,1714503060757,-152.78647308,0.00038821,7]
[325006890,1714503060843,-446.83455771,0.00038821,7]
[325006892,1714503060855,-153.89720645,0.00038887,7]
[325006894,1714503060864,-160.46474346,0.00038899,30]
[325006896,1714503060874,-18542.82760095,0.000389,14]
[325006908,1714503060976,-2066.43,0.000389,14]
[325006910,1714503060987,-13671.70826852,0.000389,14]
[325006912,1714503060998,-11622.45,0.000389,14]
[325007057,1714503063049,-467.3288599,0.00031763,4]
[325007060,1714503063061,-250.49178244,0.00031763,4]
[325007062,1714503063070,-84.18602512,0.0003178,2]
[325007073,1714503063172,1564.25196696,0.0002,2]
[325007078,1714503063209,-415.81397488,0.0003178,2]
[325007080,1714503063218,-500.0,0.0003178,2]
[325007082,1714503063227,-500.0,0.0003178,2]
[325007083,1714503063238,-500.0,0.00032054,2]
[325007085,1714503063247,-500.0,0.00032054,2]
[325007087,1714503063257,-500.0,0.00032054,2]
[325007090,1714503063266,-260.92,0.00032328,2]
[325007092,1714503063275,-500.0,0.00032328,2]
[325007094,1714503063285,-500.0,0.00032602,2]
[325007096,1714503063294,-500.0,0.00032876,2]
[325007098,1714503063305,-500.0,0.0003315,7]
[325007100,1714503063315,-500.0,0.00033424,7]
[325007102,1714503063324,-500.0,0.00033698,7]
[325007104,1714503063334,-153.0,0.00038386,2]
[325007105,1714503063347,-153.0,0.00038386,2]
[325007108,1714503063358,-153.0,0.00038386,2]
[325007110,1714503063368,-153.0,0.0003866,2]
[325007111,1714503063378,-3366.98260912,0.000389,14]
[325007114,1714503063390,-1666.94158074,0.000389,14]
[325007116,1714503063401,-1804.323423,0.000389,14]
[325007118,1714503063412,-3012.47132687,0.000389,14]
[325007124,1714503063458,756.81853789,0.00025,2]
[325007139,1714503063600,2000.0,0.00022,2]
[325007891,1714503072708,1013.91069216,0.00030187,4]
[325008175,1714503075746,588.76444884,0.00022,2]
[325009582,1714503114914,959.5404316,0.00031251,2]
[325009583,1714503120699,928.69749977,0.00030187,4]
[325009584,1714503132048,782.53379698,0.00031251,4]
[325009612,1714503159346,1621.94326618,9.999e-05,2]
[325009613,1714503195998,154.75239617,9.999e-05,2]
[325009614,1714503207905,154.75239617,9.999e-05,2]
[325009643,1714503609684,179.84157782,0.0001,2]
[325009671,1714503784556,19313.01528045,0.0001,2]
[325009725,1714504041195,-1385.85628783,0.00019538,2]
[325009726,1714504041218,-160.570029,0.00019637,2]
[325009727,1714504041240,-3049.14133508,0.00019875,2]
[325009767,1714504145205,-868.6687705,0.000189,2]
[325009768,1714504145225,-166.666666,0.00018906,2]
[325009769,1714504145243,-942.6785004,0.00019422,2]
[325009770,1714504145263,-9378.0153671,0.00019874,2]
[325009771,1714504145282,-16102.63338321,0.00019875,2]
[325009772,1714504145301,-2699.12965472,0.00019876,2]
[325009773,1714504152173,-22200.87034528,0.00019876,2]
[325009774,1714504152196,-1018.87176114,0.00019999,2]
[325009775,1714504152216,-214.71279899,0.0002,2]
[325009776,1714504152236,-1408.15274935,0.0002,2]
[325009777,1714504152256,-67426.19859378,0.0002,2]
[325009778,1714504152275,-171.1962003,0.0002078,2]
[325009779,1714504152296,-39158.9972829,0.00020908,2]
[325009780,1714504152316,-208.03748241,0.00020911,2]
[325009781,1714504152336,-890.64374431,0.00020911,2]
[325009782,1714504152355,-155.18689449,0.00020912,2]
[325009783,1714504152374,-3124.92050322,0.00021,2]
[325009784,1714504152394,-166.666666,0.00021918,2]
[325009785,1714504152414,-154.76784823,0.00022,2]
[325009786,1714504152434,-166.666666,0.00022431,2]
[325009787,1714504152454,-165.174828,0.00022466,2]
[325009788,1714504152474,-165.538528,0.00022466,2]
[325009789,1714504152493,-160.68843753,0.00022899,2]
[325009790,1714504152513,-166.666666,0.00022944,2]
[325009791,1714504152532,-324.75862683,0.00022998,2]
[325009792,1714504152552,-12780.08022652,0.00023,2]
[325009793,1714504152572,-714.17223552,0.00023,2]
[325009794,1714504152592,-166.666666,0.00023456,2]
[325009795,1714504152611,-868.6687705,0.000239,2]
[325009796,1714504152631,-166.666666,0.00023969,2]
[325009797,1714504152651,-989.91268434,0.00024,2]
[325009798,1714504152671,-166.666666,0.00024482,2]
[325009799,1714504152692,-500.0,0.00024657,2]
[325009800,1714504152712,-216.53031036,0.00026953,2]
[325009801,1714504152733,-17859.38295985,0.0002699,2]
[325009802,1714504152754,-1004.95674,0.0002763,2]
[325009803,1714504152774,-13808.77119336,0.00027987,2]
[325009804,1714504152795,-216.53031033,0.00028409,2]
[325009805,1714504152816,-2673.63689564,0.0002877,2]
[325009806,1714504152840,-629.7,0.00028797,5]
[325009807,1714504152860,-868.6687705,0.000289,2]
[325009808,1714504152884,-277.79333084,0.00029,3]
[325009809,1714504152905,-165.174828,0.00029202,2]
[325009810,1714504152927,-629.7,0.00029761,5]
[325009811,1714504152951,-216.53031033,0.00029865,2]
[325009812,1714504152972,-1751.631749,0.0003,2]
[325009813,1714504152992,-3722.55253328,0.0003,4]
[325009814,1714504153011,-325.81728988,0.0003,4]
[325009815,1714504153034,-154.78330338,0.00030187,4]
[325009816,1714504153053,-235.95222024,0.00030187,4]
[325009817,1714504153075,-629.7,0.00030724,7]
[325009818,1714504153097,-501.13625898,0.00031,120]
[325009819,1714504153119,-1121.66833623,0.00031,4]
[325009820,1714504153142,-234.30492956,0.00031251,4]
[325009821,1714504153161,-2101.68210532,0.00031251,2]
[325009822,1714504153181,-5112.43235119,0.00031251,30]
[325009823,1714504153203,-216.53031033,0.0003132,2]
[325009848,1714504157502,9378.0153671,0.00020913,2]
[325009849,1714504168245,-629.7,0.00031688,7]
[325009850,1714504168266,-436.25,0.00031694,2]
[325009851,1714504168285,-1000.0,0.00031763,30]
[325009852,1714504168305,-1000.0,0.00031763,30]
[325009853,1714504168324,-1000.0,0.00031763,30]
[325009854,1714504168344,-1000.0,0.00031763,30]
[325009855,1714504168364,-1000.0,0.00031763,30]
[325009856,1714504168384,-2807.5535999,0.00031776,4]
[325009857,1714504168404,-931.70787666,0.00031776,4]
[325009858,1714504168423,-1620.35755398,0.00031777,4]
[325009859,1714504168443,-363.75277898,0.00031778,4]
[325009860,1714504168463,-500.0,0.0003178,2]
[325009861,1714504168482,-500.0,0.0003178,2]
[325009862,1714504168501,-500.0,0.0003178,2]
[325009863,1714504168519,-364.65446932,0.0003178,2]
[325009864,1714504168538,-544.19858094,0.0003178,2]
[325009865,1714504168558,-500.0,0.0003178,2]
[325009866,1714504168579,-500.0,0.0003178,2]
[325009867,1714504168598,-500.0,0.0003178,2]
[325009868,1714504168617,-387.48202981,0.0003178,2]
[325009869,1714504168637,-500.0,0.0003178,2]
[325009870,1714504168658,-500.0,0.0003178,2]
[325009871,1714504168677,-502.14851973,0.0003178,2]
[325009872,1714504168695,-500.0,0.0003178,2]
[325009873,1714504168717,-500.0,0.0003178,2]
[325009874,1714504168737,-500.0,0.0003178,2]
[325009875,1714504168756,-500.0,0.0003178,2]
[325009876,1714504168776,-500.0,0.0003178,2]
[325009877,1714504168795,-500.0,0.0003178,2]
[325009878,1714504168814,-509.86556274,0.0003178,2]
[325009879,1714504168833,-500.0,0.0003178,2]
[325009880,1714504168853,-500.0,0.0003178,2]
[325009881,1714504168873,-500.0,0.0003178,2]
[325009882,1714504168894,-500.0,0.0003178,2]
[325009883,1714504168917,-500.0,0.0003178,2]
[325009884,1714504168940,-500.0,0.0003178,2]
[325009885,1714504168960,-435.03628223,0.0003178,2]
[325009886,1714504168981,-500.0,0.0003178,2]
[325009887,1714504168999,-500.0,0.0003178,2]
[325009888,1714504169019,-500.0,0.0003178,2]
[325009889,1714504169040,-500.0,0.0003178,2]
[325009890,1714504169060,-500.0,0.0003178,2]
[325009891,1714504169079,-500.0,0.0003178,2]
[325009892,1714504169098,-500.0,0.0003178,2]
[325009893,1714504169118,-500.0,0.0003178,2]
[325009894,1714504169137,-500.0,0.0003178,2]
[325009895,1714504169157,-500.0,0.0003178,2]
[325009896,1714504169179,-500.0,0.0003178,2]
[325009897,1714504169199,-500.0,0.0003178,2]
[325009898,1714504169221,-500.0,0.0003178,2]
[325009899,1714504169242,-500.0,0.0003178,2]
[325009900,1714504169262,-380.81,0.0003178,2]
[325009901,1714504169281,-500.0,0.0003178,2]
[325009902,1714504169301,-500.0,0.0003178,2]
[325009903,1714504169322,-500.0,0.0003178,2]
[325009904,1714504169341,-500.0,0.0003178,2]
[325009905,1714504169360,-500.0,0.0003178,2]
[325009906,1714504169380,-505.58052656,0.0003178,2]
[325009907,1714504169401,-500.0,0.0003178,2]
[325009908,1714504169423,-1192.75,0.0003178,2]
[325009909,1714504169442,-500.0,0.0003178,2]
[325009910,1714504169461,-500.0,0.0003178,2]
[325009911,1714504169481,-500.0,0.0003178,2]
[325009912,1714504169500,-500.0,0.0003178,2]
[325009913,1714504169521,-500.0,0.0003178,2]
[325009914,1714504169541,-500.0,0.0003178,2]
[325009915,1714504169560,-500.0,0.0003178,2]
[325009916,1714504169580,-500.0,0.0003178,2]
[325009917,1714504169599,-500.0,0.0003178,2]
[325009918,1714504169620,-500.0,0.0003178,2]
[325009919,1714504169642,-500.0,0.0003178,2]
[325009920,1714504169661,-500.0,0.0003178,2]
[325009921,1714504169681,-513.33959173,0.0003178,2]
[325009922,1714504169701,-152.65,0.0003178,2]
[325009923,1714504169724,-500.0,0.0003178,2]
[325009924,1714504169745,-500.0,0.0003178,2]
[325009925,1714504169764,-500.0,0.0003178,2]
[325009926,1714504169783,-500.0,0.0003178,2]
[325009927,1714504169803,-500.0,0.0003178,2]
[325009928,1714504169822,-500.0,0.0003178,2]
[325009929,1714504169842,-500.0,0.0003178,2]
[325009930,1714504169862,-500.0,0.0003178,2]
[325009931,1714504169883,-500.0,0.0003178,2]
[325009932,1714504169906,-500.0,0.0003178,2]
[325009933,1714504169927,-500.0,0.0003178,2]
[325009934,1714504169947,-500.0,0.0003178,2]
[325009935,1714504169968,-500.0,0.0003178,2]
[325009936,1714504169989,-500.0,0.0003178,2]
[325009937,1714504170009,-500.0,0.0003178,2]
[325009938,1714504170029,-500.0,0.0003178,2]
[325009939,1714504170049,-500.0,0.0003178,2]
[325009940,1714504170068,-500.0,0.0003178,2]
[325009941,1714504170087,-500.0,0.0003178,2]
[325009942,1714504170105,-500.0,0.0003178,2]
[325009943,1714504170125,-500.0,0.0003178,30]
[325009944,1714504170145,-500.0,0.0003178,2]
[325009945,1714504170165,-500.0,0.0003178,2]
[325009946,1714504170183,-500.0,0.0003178,2]
[325009947,1714504170202,-500.0,0.0003178,2]
[325009948,1714504170222,-500.0,0.0003178,2]
[325009949,1714504170240,-500.0,0.0003178,2]
[325009950,1714504170258,-500.0,0.0003178,2]
[325009951,1714504170276,-500.0,0.0003178,2]
[325009952,1714504170396,-500.0,0.0003178,2]
[325009953,1714504170418,-645.44512134,0.0003178,2]
[325009954,1714504170437,-500.0,0.0003178,2]
[325009955,1714504170458,-730.16,0.0003178,2]
[325009956,1714504170477,-500.0,0.0003178,2]
[325009957,1714504170495,-500.0,0.0003178,2]
[325009958,1714504170514,-500.95072127,0.0003178,2]
[325009959,1714504170533,-281.54196155,0.0003178,2]
[325009961,1714504172318,1564.25196696,0.00020913,2]
[325009964,1714504185963,2084.30400312,0.00020913,2]
[325009966,1714504190713,1564.25196696,0.00020913,2]
[325009967,1714504204458,756.81853789,0.00025,2]
[325009969,1714504212247,1045.60002943,0.00020913,2]
[325009970,1714504224221,756.81853789,0.00025,2]
[325010013,1714504232205,-1751.631749,0.00031679,2]
[325010014,1714504232214,-498.28881148,0.0003168,5]
[325010015,1714504232223,-216.53031033,0.0003168,2]